bitfinex/quotes_BTCUSD_20230120
["timestamp","ask_amount","ask_price","bid_price","bid_amount"]
[1674213638329,3.74252486,20966.0,20965.0,0.00270755]
[1674213642137,4.15253922,20966.0,20965.0,0.00270755]
[1674213642376,3.74252486,20966.0,20965.0,0.00270755]
[1674213642651,4.15253922,20966.0,20965.0,0.00270755]
[1674213642912,0.15,20965.0,20964.0,0.0184177]
[1674213643170,3.79173978,20965.0,20964.0,0.0184177]
[1674213643399,3.38172542,20965.0,20964.0,0.0184177]
[1674213644119,3.47172542,20965.0,20964.0,0.0184177]
[1674213644340,3.88173978,20965.0,20964.0,0.0184177]
[1674213644570,4.22500544,20965.0,20964.0,0.0184177]
[1674213644854,4.29759327,20965.0,20964.0,0.0184177]
[1674213645388,3.81499108,20965.0,20964.0,0.0184177]
[1674213645650,3.47172542,20965.0,20964.0,0.0184177]
[1674213646207,3.81499108,20965.0,20964.0,0.0184177]
[1674213646462,3.47172542,20965.0,20964.0,0.0184177]
[1674213648886,3.88173978,20965.0,20964.0,0.0184177]
[1674213649152,4.70760763,20965.0,20964.0,0.0184177]
[1674213652024,4.36434197,20965.0,20964.0,0.0184177]
[1674213652026,4.70760763,20965.0,20964.0,0.0184177]
[1674213653111,4.59390763,20965.0,20964.0,0.0184177]
[1674213653630,4.70770763,20965.0,20964.0,0.0184177]
[1674213657886,4.36444197,20965.0,20964.0,0.0184177]
[1674213660069,4.70770763,20965.0,20964.0,0.0184177]
[1674213662737,0.01742567,20963.0,20962.0,0.00262292]
[1674213663034,3.34835594,20963.0,20962.0,0.00262292]
[1674213663293,4.10479526,20963.0,20962.0,0.00262292]
[1674213664060,3.88318896,20963.0,20962.0,0.00262292]
[1674213664579,4.11179646,20963.0,20962.0,0.00262292]
[1674213664836,3.88318896,20963.0,20962.0,0.00262292]
[1674213665609,4.11178469,20963.0,20962.0,0.00262292]
[1674213665854,4.59439372,20963.0,20962.0,0.00262292]
[1674213666107,4.36579115,20963.0,20962.0,0.00262292]
[1674213666635,4.29439288,20963.0,20962.0,0.00262292]
[1674213667275,4.59439288,20963.0,20962.0,0.00262292]
[1674213667866,3.55219569,20963.0,20962.0,0.00262292]
[1674213668657,4.2954057,20963.0,20962.0,0.00262292]
[1674213668924,4.5954057,20963.0,20962.0,0.00262292]
[1674213669177,4.2954057,20963.0,20962.0,0.00262292]
[1674213669711,4.5954057,20963.0,20962.0,0.00262292]
[1674213669985,4.29543535,20963.0,20962.0,0.00262292]
[1674213670256,4.59543535,20963.0,20962.0,0.00262292]
[1674213670514,4.77681833,20963.0,20962.0,0.00262292]
[1674213670775,4.49106046,20963.0,20962.0,0.00262292]
[1674213671044,4.0810461,20963.0,20962.0,0.00262292]
[1674213671562,4.0740461,20963.0,20962.0,0.00262292]
[1674213671834,4.1630461,20963.0,20962.0,0.00262292]
[1674213672090,4.0740461,20963.0,20962.0,0.00262292]
[1674213672361,4.1640461,20963.0,20962.0,0.00262292]
[1674213674316,3.68144391,20963.0,20962.0,0.00262292]
[1674213674616,4.09145827,20963.0,20962.0,0.00262292]
[1674213677639,4.43472393,20963.0,20962.0,0.00262292]
[1674213678163,4.91192562,20963.0,20962.0,0.00262292]
[1674213682729,4.50191126,20963.0,20962.0,0.00262292]
[1674213683005,5.05126215,20963.0,20962.0,0.00262292]
[1674213683705,5.39452781,20963.0,20962.0,0.00262292]
[1674213684238,5.05126215,20963.0,20962.0,0.00262292]
[1674213684765,5.05126215,20963.0,20962.0,0.00254843]
[1674213685005,5.39452781,20963.0,20962.0,0.00254843]
[1674213685238,4.1586456,20963.0,20962.0,0.00254843]
[1674213687892,3.66736311,20963.0,20962.0,0.00254843]
[1674213688122,3.55426311,20963.0,20962.0,0.00254843]
[1674213688382,3.85426311,20963.0,20962.0,0.00254843]
[1674213688892,3.55426311,20963.0,20962.0,0.00254843]
[1674213689166,3.85426311,20963.0,20962.0,0.00254843]
[1674213690151,3.55426311,20963.0,20962.0,0.00254843]
[1674213691226,3.85426311,20963.0,20962.0,0.00254843]
[1674213691964,3.55426311,20963.0,20962.0,0.00254843]
[1674213692526,3.85426311,20963.0,20962.0,0.00254843]
[1674213692757,3.55426311,20963.0,20962.0,0.00254843]
[1674213693022,3.85426311,20963.0,20962.0,0.00254843]
[1674213693319,4.03513449,20963.0,20962.0,0.00254843]
[1674213693618,4.33513449,20963.0,20962.0,0.00254843]
[1674213693945,4.33515371,20963.0,20962.0,0.00254843]
[1674213693946,4.04921529,20963.0,20962.0,0.00254843]
[1674213694197,4.0177239,20963.0,20962.0,0.00254843]
[1674213694687,3.53685252,20963.0,20962.0,0.00254843]
[1674213698184,3.76559838,20963.0,20962.0,0.00254843]
[1674213699195,3.83685252,20963.0,20962.0,0.00254843]
[1674213700791,3.53685252,20963.0,20962.0,0.00254843]
[1674213701063,3.76559994,20963.0,20962.0,0.00254843]
[1674213703199,4.06559994,20963.0,20962.0,0.00254843]
[1674213703462,3.83685252,20963.0,20962.0,0.00254843]
[1674213703730,3.55091824,20963.0,20962.0,0.00254843]
[1674213703990,3.25091824,20963.0,20962.0,0.00254843]
[1674213704285,3.83684976,20963.0,20962.0,0.00254843]
[1674213705780,4.3139398,20963.0,20962.0,0.00254843]
[1674213706041,4.02800828,20963.0,20962.0,0.00254843]
[1674213706514,4.31393924,20963.0,20962.0,0.00254843]
[1674213706776,4.02800828,20963.0,20962.0,0.00254843]
[1674213707521,3.55091824,20963.0,20962.0,0.00254843]
[1674213707772,3.83684833,20963.0,20962.0,0.00254843]
[1674213709067,3.83684833,20963.0,20962.0,0.00248639]
[1674213710621,3.83684664,20963.0,20962.0,0.00248639]
[1674213710860,3.55091824,20963.0,20962.0,0.00248639]
[1674213712431,3.83685636,20963.0,20962.0,0.00248639]
[1674213712695,3.55091824,20963.0,20962.0,0.00248639]
[1674213712935,4.02107667,20963.0,20962.0,0.00248639]
[1674213713868,3.73513426,20963.0,20962.0,0.00248639]
[1674213715802,3.55091824,20963.0,20962.0,0.00248639]
[1674213716270,3.83686845,20963.0,20962.0,0.00248639]
[1674213716734,3.55091824,20963.0,20962.0,0.00248639]
[1674213718192,4.0747326,20963.0,20962.0,0.00248639]
[1674213718432,3.66471824,20963.0,20962.0,0.00248639]
[1674213718691,4.14732043,20963.0,20962.0,0.00248639]
[1674213718948,4.90060045,20963.0,20962.0,0.00248639]
[1674213719213,4.49058609,20963.0,20962.0,0.00248639]
[1674213719969,4.90060045,20963.0,20962.0,0.00248639]
[1674213720454,4.49058609,20963.0,20962.0,0.00248639]
[1674213720987,4.90060045,20963.0,20962.0,0.00248639]
[1674213722043,4.49058609,20963.0,20962.0,0.00248639]
[1674213725139,0.15,20962.0,20961.0,0.00065518]
[1674213725396,3.45089736,20962.0,20961.0,0.00065518]
[1674213725656,4.40500336,20962.0,20961.0,0.00065518]
[1674213725920,4.17062923,20962.0,20961.0,0.00065518]
[1674213726441,4.26062923,20962.0,20961.0,0.00065518]
[1674213726967,5.14784528,20962.0,20961.0,0.00065518]
[1674213727218,5.38154263,20962.0,20961.0,0.00065518]
[1674213727497,7.15020092,20962.0,20961.0,0.00065518]
[1674213728035,7.06020092,20962.0,20961.0,0.00065518]
[1674213728283,5.29154263,20962.0,20961.0,0.00015518]
[1674213728538,0.15,20961.0,20960.0,0.00193757]
[1674213728795,4.77948863,20961.0,20960.0,0.00193757]
[1674213729054,4.77270537,20961.0,20960.0,0.00193757]
[1674213729341,5.07270537,20961.0,20960.0,0.00193757]
[1674213729592,4.56770318,20961.0,20960.0,0.00193757]
[1674213729848,4.15768882,20961.0,20960.0,0.00193757]
[1674213730361,3.81469093,20961.0,20960.0,0.00193757]
[1674213731158,4.22470529,20961.0,20960.0,0.00193757]
[1674213731427,3.81469093,20961.0,20960.0,0.00193757]
[1674213731688,4.29729312,20961.0,20960.0,0.00193757]
[1674213732210,4.70730748,20961.0,20960.0,0.00193757]
[1674213732445,4.29729312,20961.0,20960.0,0.00193757]
[1674213732747,3.81469093,20961.0,20960.0,0.00193757]
[1674213732971,4.10044295,20961.0,20960.0,0.00193757]
[1674213733500,3.32324126,20961.0,20960.0,0.00193757]
[1674213733765,3.20944126,20961.0,20960.0,0.00193757]
[1674213734033,3.50944126,20961.0,20960.0,0.00193757]
[1674213734297,3.22368924,20961.0,20960.0,0.00193757]
[1674213734842,3.5094302,20961.0,20960.0,0.00193757]
[1674213735098,3.22368924,20961.0,20960.0,0.00193757]
[1674213735390,3.50941669,20961.0,20960.0,0.00193757]
[1674213736459,3.73799451,20961.0,20960.0,0.00193757]
[1674213736712,3.50941717,20961.0,20960.0,0.00193757]
[1674213736966,3.73799907,20961.0,20960.0,0.00193757]
[1674213738476,3.73800045,20961.0,20960.0,0.00193757]
[1674213738992,3.50941717,20961.0,20960.0,0.00193757]
[1674213739299,3.99201936,20961.0,20960.0,0.00193757]
[1674213739530,3.70629143,20961.0,20960.0,0.00193757]
[1674213739805,3.75753482,20961.0,20960.0,0.00193757]
[1674213740050,3.56068502,20961.0,20960.0,0.00193757]
[1674213740296,3.78928329,20961.0,20960.0,0.00193757]
[1674213740579,3.26068502,20961.0,20960.0,0.00193757]
[1674213740812,3.48928216,20961.0,20960.0,0.00193757]
[1674213741071,2.74607763,20961.0,20960.0,0.00193757]
[1674213741615,1.81341041,20961.0,20960.0,0.00193757]
[1674213741930,1.26784727,20961.0,20960.0,0.46332491]
[1674213742177,1.21068995,20961.0,20960.0,0.41196606]
[1674213742453,1.09639539,20961.0,20960.0,0.41196606]
[1674213745121,1.09629569,20961.0,20960.0,0.41196606]
[1674213746562,0.61921969,20961.0,20960.0,0.41196606]
[1674213747812,0.61921969,20961.0,20960.0,0.63189181]
[1674213748594,0.61921969,20961.0,20960.0,0.41196606]
[1674213749136,1.09629569,20961.0,20960.0,0.41196606]
[1674213752414,0.61921969,20961.0,20960.0,0.41196606]
[1674213753695,1.09629569,20961.0,20960.0,0.52516606]
[1674213755781,1.09629569,20961.0,20960.0,0.11513757]
[1674213757951,1.09629569,20961.0,20960.0,0.00193757]
[1674213758216,1.40713269,20961.0,20960.0,0.00193757]
[1674213758475,1.52142725,20961.0,20960.0,0.00193757]
[1674213759586,1.82142725,20961.0,20960.0,0.00193757]
[1674213759846,1.69287913,20961.0,20960.0,0.00193757]
[1674213760098,1.52142725,20961.0,20960.0,0.00193757]
[1674213760860,1.82142725,20961.0,20960.0,0.00193757]
[1674213761102,1.87858457,20961.0,20960.0,0.00193757]
[1674213761460,1.57858457,20961.0,20960.0,0.00193757]
[1674213761611,4.04048818,20961.0,20960.0,0.00193757]
[1674213762130,3.92539104,20961.0,20960.0,0.00193757]
[1674213764235,3.74363665,20961.0,20960.0,0.00193757]
[1674213765320,3.00349228,20961.0,20960.0,0.00193757]
[1674213765533,4.21363249,20961.0,20960.0,0.00193757]
[1674213766936,2.51903734,20961.0,20960.0,0.00193757]
[1674213767209,2.69036249,20961.0,20960.0,0.00193757]
[1674213767478,3.74365347,20961.0,20960.0,0.00184375]
[1674213767748,2.0490808,20961.0,20960.0,0.00184375]
[1674213768024,2.22038604,20961.0,20960.0,0.00184375]
[1674213768564,2.98774653,20961.0,20960.0,0.00184375]
[1674213768823,3.8724664,20961.0,20960.0,0.00184375]
[1674213769108,4.28248076,20961.0,20960.0,0.00184375]
[1674213769428,4.1009114,20961.0,20960.0,0.00184375]
[1674213769672,4.51092576,20961.0,20960.0,0.00184375]
[1674213770776,3.8724664,20961.0,20960.0,0.00184375]
[1674213771031,4.28248076,20961.0,20960.0,0.00184375]
[1674213771316,4.51092189,20961.0,20960.0,0.00184375]
[1674213771867,4.28248076,20961.0,20960.0,0.00184375]
[1674213772458,4.75968245,20961.0,20960.0,0.00184375]
[1674213773563,0.15,20960.0,20959.0,0.00147076]
[1674213773819,4.07984343,20960.0,20959.0,0.00147076]
[1674213775098,4.16184343,20960.0,20959.0,0.00247076]
[1674213775818,3.73377483,20960.0,20959.0,0.00247076]
[1674213776314,3.50535105,20960.0,20959.0,0.00247076]
[1674213776781,2.77925768,20960.0,20959.0,0.00247076]
[1674213777032,2.03922911,20960.0,20959.0,0.00247076]
[1674213777317,2.21047743,20960.0,20959.0,0.00247076]
[1674213777573,2.39599418,20960.0,20959.0,0.00247076]
[1674213780506,3.91899997,20960.0,20959.0,0.00247076]
[1674213781052,4.10068322,20960.0,20959.0,0.00247076]
[1674213781309,3.69066886,20960.0,20959.0,0.00247076]
[1674213783104,4.10068322,20960.0,20959.0,0.00247076]
[1674213783383,3.69066886,20960.0,20959.0,0.00247076]
[1674213783643,3.91726886,20960.0,20959.0,0.00247076]
[1674213785694,4.32728322,20960.0,20959.0,0.00247076]
[1674213785950,4.14556198,20960.0,20959.0,0.00247076]
[1674213786509,3.91726886,20960.0,20959.0,0.00247076]
[1674213787024,4.39447055,20960.0,20959.0,0.00247076]
[1674213787283,4.51895519,20960.0,20959.0,0.00247076]
[1674213787564,4.10894083,20960.0,20959.0,0.00247076]
[1674213787821,4.39436604,20960.0,20959.0,0.00247076]
[1674213788592,4.3942116,20960.0,20959.0,0.00247076]
[1674213789886,4.62259692,20960.0,20959.0,0.00247076]
[1674213790372,4.32326539,20960.0,20959.0,0.00247076]
[1674213790627,4.15120863,20960.0,20959.0,0.00247076]
[1674213790882,4.43663384,20960.0,20959.0,0.00247076]
[1674213791137,4.2082633,20960.0,20959.0,0.00247076]
[1674213792422,4.43670761,20960.0,20959.0,0.00247076]
[1674213792911,4.69086549,20960.0,20959.0,0.00247076]
[1674213794937,3.92283809,20960.0,20959.0,0.00247076]
[1674213796213,4.20856458,20960.0,20959.0,0.00247076]
[1674213797264,3.92283809,20960.0,20959.0,0.00247076]
[1674213798264,4.20875613,20960.0,20959.0,0.00247076]
[1674213798740,3.92283809,20960.0,20959.0,0.00247076]
[1674213800051,3.16896138,20960.0,20959.0,0.14211076]
[1674213800359,3.0730307,20960.0,20959.0,0.19134963]
[1674213800583,1.54994374,20960.0,20959.0,0.19134963]
[1674213800830,2.50436379,20960.0,20959.0,0.19134963]
[1674213801084,2.50436372,20960.0,20959.0,0.00247076]
[1674213801341,3.16350332,20960.0,20959.0,0.00247076]
[1674213801902,3.39231398,20960.0,20959.0,0.00247076]
[1674213802153,3.11552644,20960.0,20959.0,0.14211076]
[1674213802419,3.11552644,20960.0,20959.0,0.00247076]
[1674213802674,2.66017996,20960.0,20959.0,0.00247076]
[1674213802949,2.83176762,20960.0,20959.0,0.00247076]
[1674213803707,3.11547091,20960.0,20959.0,0.00247076]
[1674213803963,2.66017996,20960.0,20959.0,0.00247076]
[1674213804531,3.40144367,20960.0,20959.0,0.00247076]
[1674213804782,3.17263301,20960.0,20959.0,0.00247076]
[1674213806371,3.40141508,20960.0,20959.0,0.00247076]
[1674213806877,3.17263301,20960.0,20959.0,0.00247076]
[1674213809581,3.40141599,20960.0,20959.0,0.00247076]
[1674213810088,3.40141599,20960.0,20959.0,0.00237498]
[1674213810627,2.66015228,20960.0,20959.0,0.00237498]
[1674213810884,1.54996395,20960.0,20959.0,0.14201498]
[1674213811144,1.54996395,20960.0,20959.0,0.24633188]
[1674213811412,1.54996395,20960.0,20959.0,0.10669188]
[1674213811667,1.32118097,20960.0,20959.0,0.10669188]
[1674213811922,1.32118097,20960.0,20959.0,0.00237498]
[1674213811923,1.43555357,20960.0,20959.0,0.00237498]
[1674213812191,1.54996395,20960.0,20959.0,0.00237498]
[1674213812703,2.5043691,20960.0,20959.0,0.00237498]
[1674213812965,3.39472084,20960.0,20959.0,0.00237498]
[1674213814288,1.8701119,20960.0,20959.0,0.00237498]
[1674213814565,1.5499319,20960.0,20959.0,0.00237498]
[1674213815110,1.8688019,20960.0,20959.0,0.00237498]
[1674213815637,1.8732919,20960.0,20959.0,0.00237498]
[1674213816401,1.5499319,20960.0,20959.0,0.00237498]
[1674213818483,2.33278141,20960.0,20959.0,0.00237498]
[1674213818717,2.83232599,20960.0,20959.0,0.00237498]
[1674213818975,1.87792556,20960.0,20959.0,0.00237498]
[1674213819254,1.54991956,20960.0,20959.0,0.00237498]
[1674213820502,1.32113658,20960.0,20959.0,0.00237498]
[1674213821027,1.43548702,20960.0,20959.0,0.00237498]
[1674213821559,1.54991956,20960.0,20959.0,0.00237498]
[1674213821825,1.32113658,20960.0,20959.0,0.00237498]
[1674213822072,1.32113658,20960.0,20959.0,0.14201498]
[1674213822344,1.26394723,20960.0,20959.0,0.24022537]
[1674213823143,1.26394723,20960.0,20959.0,0.14201498]
[1674213824186,1.149598,20960.0,20959.0,0.14201498]
[1674213824446,1.149598,20960.0,20959.0,0.48496801]
[1674213824719,1.149598,20960.0,20959.0,0.82247901]
[1674213825811,1.149598,20960.0,20959.0,0.93627901]
[1674213826081,1.149598,20960.0,20959.0,1.60723245]
[1674213826373,1.149598,20960.0,20959.0,1.72093245]
[1674213826374,0.1954,20960.0,20959.0,1.72093245]
[1674213829916,0.1134,20960.0,20959.0,1.71993245]
[1674213830187,0.1204,20960.0,20959.0,1.73593245]
[1674213830968,0.1204,20960.0,20959.0,1.32595512]
[1674213831237,0.1204,20960.0,20959.0,1.73595694]
[1674213832024,0.12028361,20960.0,20959.0,1.73595694]
[1674213836525,0.12028361,20960.0,20959.0,1.84975694]
[1674213838646,0.12028361,20960.0,20959.0,1.43992793]
[1674213840781,0.12028361,20960.0,20959.0,1.84994229]
[1674213842405,0.12028361,20960.0,20959.0,1.73624229]
[1674213843754,0.12028361,20960.0,20959.0,1.62244229]
[1674213850460,0.12028361,20960.0,20959.0,1.75661126]
[1674213850463,0.12028361,20960.0,20959.0,2.11322574]
[1674213853687,0.12028361,20960.0,20959.0,2.22602574]
[1674213857349,0.12028361,20960.0,20959.0,1.33888938]
[1674213857851,0.12028361,20960.0,20959.0,0.86173838]
[1674213858134,0.12028361,20960.0,20959.0,0.74893838]
[1674213859457,0.59738261,20960.0,20959.0,0.48778946]
[1674213860282,0.59738261,20960.0,20959.0,0.13117498]
[1674213860534,1.07448161,20960.0,20959.0,0.13117498]
[1674213861118,1.07448161,20960.0,20959.0,0.01737498]
[1674213863523,1.07448161,20960.0,20959.0,0.01754779]
[1674213863804,1.07448161,20960.0,20959.0,0.01737498]
[1674213867662,1.40826761,20960.0,20959.0,0.01737498]
[1674213869299,1.07448161,20960.0,20959.0,0.01737498]
[1674213870533,1.39649361,20960.0,20959.0,0.01737498]
[1674213877791,1.68238142,20960.0,20959.0,0.01728926]
[1674213878049,1.51084284,20960.0,20959.0,0.01728926]
[1674213878593,1.56803219,20960.0,20959.0,0.01728926]
[1674213878851,2.32431517,20960.0,20959.0,0.01728926]
[1674213879116,2.09538502,20960.0,20959.0,0.01728926]
[1674213879345,2.32411175,20960.0,20959.0,0.01728926]
[1674213879602,2.09532877,20960.0,20959.0,0.01728926]
[1674213880124,2.20955051,20960.0,20959.0,0.01728926]
[1674213880920,2.59383255,20960.0,20959.0,0.01728926]
[1674213881216,2.20955051,20960.0,20959.0,0.01728926]
[1674213881475,3.96081906,20960.0,20959.0,0.01728926]
[1674213881770,2.26637659,20960.0,20959.0,0.01728926]
[1674213882041,2.43768446,20960.0,20959.0,0.01728926]
[1674213882309,2.43768394,20960.0,20959.0,0.01728926]
[1674213882572,2.43768394,20960.0,20959.0,0.00128926]
[1674213882573,3.95383952,20960.0,20959.0,0.00128926]
[1674213883194,3.72505654,20960.0,20959.0,0.00128926]
[1674213883450,4.43606763,20960.0,20959.0,0.00128926]
[1674213883723,2.91285611,20960.0,20959.0,0.00128926]
[1674213883976,4.51290978,20960.0,20959.0,0.00228926]
[1674213884286,3.48142286,20960.0,20959.0,0.00128926]
[1674213884502,2.78985013,20960.0,20959.0,0.00228926]
[1674213884790,2.27884274,20960.0,20959.0,0.00228926]
[1674213885069,2.33600251,20960.0,20959.0,0.00228926]
[1674213885605,2.50723102,20960.0,20959.0,0.00228926]
[1674213885892,2.39297218,20960.0,20959.0,0.00228926]
[1674213886931,2.50723102,20960.0,20959.0,0.00228926]
[1674213887441,2.79052983,20960.0,20959.0,0.00228926]
[1674213887696,2.56812874,20960.0,20959.0,0.00228926]
[1674213887968,2.50721671,20960.0,20959.0,0.00228926]
[1674213889018,2.27880781,20960.0,20959.0,0.00228926]
[1674213889584,2.50721671,20960.0,20959.0,0.00228926]
[1674213889836,0.15,20959.0,20958.0,0.00105436]
[1674213890100,2.92017619,20959.0,20958.0,0.00105436]
[1674213890362,4.16011179,20959.0,20958.0,0.00105436]
[1674213890627,4.27392227,20959.0,20958.0,0.00105436]
[1674213890881,4.75112396,20959.0,20958.0,0.00105436]
[1674213891150,4.31541454,20959.0,20958.0,0.00205436]
[1674213891407,4.60075029,20959.0,20958.0,0.00205436]
[1674213891671,4.82902597,20959.0,20958.0,0.00205436]
[1674213892411,4.60075029,20959.0,20958.0,0.00205436]
[1674213892412,4.3127143,20959.0,20958.0,0.00205436]
[1674213893222,4.31267788,20959.0,20958.0,0.00205436]
[1674213895091,4.54090828,20959.0,20958.0,0.00205436]
[1674213895363,2.84650409,20959.0,20958.0,0.00205436]
[1674213895665,3.50031888,20959.0,20958.0,0.00205436]
[1674213895925,4.79428918,20959.0,20958.0,0.00205436]
[1674213897816,5.02258151,20959.0,20958.0,0.00205436]
[1674213898372,4.79428918,20959.0,20958.0,0.00205436]
[1674213898629,4.50898985,20959.0,20958.0,0.00205436]
[1674213900958,0.15,20958.0,20957.0,0.00382621]
[1674213901183,4.14984237,20958.0,20957.0,0.00382621]
[1674213901444,3.92157272,20958.0,20957.0,0.00382621]
[1674213901714,4.1498375,20958.0,20957.0,0.00382621]
[1674213902551,2.62759403,20958.0,20957.0,0.00382621]
[1674213902760,2.70559403,20958.0,20957.0,0.00482621]
[1674213903030,4.07357173,20958.0,20957.0,0.00482621]
[1674213903294,2.38247778,20958.0,20957.0,0.00482621]
[1674213903553,2.55368598,20958.0,20957.0,0.00482621]
[1674213903825,2.13956373,20958.0,20957.0,0.00482621]
[1674213904074,1.65036373,20958.0,20957.0,0.00482621]
[1674213904343,1.47915553,20958.0,20957.0,0.00482621]
[1674213904605,1.032288,20958.0,20957.0,0.00482621]
[1674213904903,1.032288,20958.0,20957.0,0.14446621]
[1674213905156,1.14643053,20958.0,20957.0,0.00482621]
[1674213905410,1.46197153,20958.0,20957.0,0.00482621]
[1674213906198,1.63317973,20958.0,20957.0,0.00482621]
[1674213906460,1.46197153,20958.0,20957.0,0.00482621]
[1674213907259,1.63317973,20958.0,20957.0,0.00482621]
[1674213908262,1.46197153,20958.0,20957.0,0.00482621]
[1674213908520,1.63317973,20958.0,20957.0,0.00482621]
[1674213909918,1.49887865,20958.0,20957.0,0.00482621]
[1674213910449,1.67008685,20958.0,20957.0,0.00482621]
[1674213910705,1.49887865,20958.0,20957.0,0.00482621]
[1674213911508,1.55594432,20958.0,20957.0,0.00482621]
[1674213911771,1.67016523,20958.0,20957.0,0.00482621]
[1674213912296,1.55594432,20958.0,20957.0,0.00482621]
[1674213912866,1.85594432,20958.0,20957.0,0.00482621]
[1674213913128,2.0842091,20958.0,20957.0,0.00482621]
[1674213913400,1.7842091,20958.0,20957.0,0.00482621]
[1674213913655,1.8980091,20958.0,20957.0,0.00482621]
[1674213913915,1.66974432,20958.0,20957.0,0.00482621]
[1674213914181,1.8980091,20958.0,20957.0,0.00482621]
[1674213915242,4.056811,20958.0,20957.0,0.00482621]
[1674213915703,3.82854622,20958.0,20957.0,0.00482621]
[1674213915704,4.05715651,20958.0,20957.0,0.00482621]
[1674213915981,3.77040916,20958.0,20957.0,0.00482621]
[1674213917018,4.05616482,20958.0,20957.0,0.00482621]
[1674213917277,4.11340705,20958.0,20957.0,0.00482621]
[1674213917807,3.77040916,20958.0,20957.0,0.00482621]
[1674213918331,4.11340705,20958.0,20957.0,0.00482621]
[1674213918592,3.77040916,20958.0,20957.0,0.00482621]
[1674213918817,0.15,20957.0,20956.0,0.00101107]
[1674213919085,3.12326966,20957.0,20956.0,0.00101107]
[1674213919370,3.63569418,20957.0,20956.0,0.00101107]
[1674213919865,3.64069418,20957.0,20956.0,0.01201107]
[1674213920133,3.34069418,20957.0,20956.0,0.01201107]
[1674213920414,3.56937243,20957.0,20956.0,0.01201107]
[1674213920715,3.34069418,20957.0,20956.0,0.01201107]
[1674213920979,3.35486966,20957.0,20956.0,0.01201107]
[1674213921237,3.64071643,20957.0,20956.0,0.01201107]
[1674213921494,3.35486966,20957.0,20956.0,0.01201107]
[1674213921754,3.35586502,20957.0,20956.0,0.01201107]
[1674213922843,3.64177033,20957.0,20956.0,0.01201107]
[1674213923536,4.12437252,20957.0,20956.0,0.01201107]
[1674213925083,3.83846721,20957.0,20956.0,0.01201107]
[1674213929280,3.95146721,20957.0,20956.0,0.01201107]
[1674213929792,4.2944651,20957.0,20956.0,0.01201107]
[1674213931973,4.77166679,20957.0,20956.0,0.01201107]
[1674213933743,5.00263749,20957.0,20956.0,0.01201107]
[1674213933990,4.77167584,20957.0,20956.0,0.01201107]
[1674213934236,4.76667584,20957.0,20956.0,0.00101107]
[1674213934487,4.99753765,20957.0,20956.0,0.00101107]
[1674213934752,5.34047289,20957.0,20956.0,0.00101107]
[1674213935041,4.76660414,20957.0,20956.0,0.00101107]
[1674213935259,4.84760414,20957.0,20956.0,0.00201107]
[1674213935926,4.76660414,20957.0,20956.0,0.00101107]
[1674213936209,4.84760414,20957.0,20956.0,0.00201107]
[1674213936463,5.68097704,20957.0,20956.0,0.00101107]
[1674213936704,5.83177312,20957.0,20956.0,0.00201107]
[1674213936951,6.06276894,20957.0,20956.0,0.00201107]
[1674213937207,0.15,20956.0,20954.0,0.02434022]
[1674213937451,3.4069478,20955.0,20954.0,0.02434022]
[1674213937690,4.50352109,20955.0,20954.0,0.02434022]
[1674213938409,4.50352109,20955.0,20954.0,0.02534022]
[1674213938665,4.50352109,20955.0,20954.0,0.02434022]
[1674213938948,0.0178902,20953.0,20952.0,0.0048473]
[1674213939198,3.35796656,20953.0,20952.0,0.0048473]
[1674213939431,4.11163211,20953.0,20952.0,0.0048473]
[1674213939906,4.11663211,20953.0,20952.0,0.0128473]
[1674213940636,2.42277211,20953.0,20952.0,0.0128473]
[1674213941363,3.01338746,20953.0,20952.0,0.0128473]
[1674213941603,4.47594218,20953.0,20952.0,0.0111556]
[1674213941837,4.47594218,20953.0,20952.0,0.00939112]
[1674213942071,4.47594218,20953.0,20952.0,0.00765471]
[1674213942801,4.70429257,20953.0,20952.0,0.00765471]
[1674213943287,3.18448268,20953.0,20952.0,0.00765471]
[1674213943536,3.29828268,20953.0,20952.0,0.00765471]
[1674213944536,3.29827117,20953.0,20952.0,0.00765471]
[1674213945024,3.18485751,20953.0,20952.0,0.00765471]
[1674213945789,2.88485751,20953.0,20952.0,0.00765471]
[1674213946035,1.89514864,20953.0,20952.0,0.00765471]
[1674213946284,2.18058837,20953.0,20952.0,0.00765471]
[1674213946571,2.29475582,20953.0,20952.0,0.00765471]
[1674213946782,2.61183814,20953.0,20952.0,0.00765471]
[1674213947275,2.79766712,20953.0,20952.0,0.00765471]
[1674213947515,2.91183814,20953.0,20952.0,0.00765471]
[1674213948201,3.27486988,20953.0,20952.0,0.00765471]
[1674213948419,3.38903983,20953.0,20952.0,0.00765471]
[1674213949192,3.16068944,20953.0,20952.0,0.00765471]
[1674213949433,3.38903983,20953.0,20952.0,0.00765471]
[1674213949680,3.66820097,20953.0,20952.0,0.00765471]
[1674213949915,3.95385531,20953.0,20952.0,0.00765471]
[1674213950142,4.90865536,20953.0,20952.0,0.00765471]
[1674213951640,3.95385531,20953.0,20952.0,0.00765471]
[1674213951883,3.66820097,20953.0,20952.0,0.00765471]
[1674213952165,3.38904452,20953.0,20952.0,0.00765471]
[1674213953029,4.90906003,20953.0,20952.0,0.00765471]
[1674213953536,3.2178013,20953.0,20952.0,0.00765471]
[1674213954029,4.90906655,20953.0,20952.0,0.00765471]
[1674213954650,4.6806979,20953.0,20952.0,0.00765471]
[1674213954911,4.35861558,20953.0,20949.0,0.0142132]
[1674213955174,1.23971654,20952.0,20949.0,0.0142132]
[1674213955465,2.19427854,20952.0,20949.0,0.0142132]
[1674213955730,2.60693545,20952.0,20949.0,0.0142132]
[1674213956274,2.36557661,20952.0,20949.0,0.0142132]
[1674213956536,4.36174702,20952.0,20951.0,0.01418576]
[1674213956799,4.21634948,20952.0,20951.0,0.01418576]
[1674213958604,3.93086324,20952.0,20951.0,0.01418576]
[1674213958858,4.41346543,20952.0,20950.0,0.00157606]
[1674213959166,2.87427041,20951.0,20950.0,0.00157606]
[1674213959444,4.12743745,20951.0,20950.0,0.00157606]
[1674213959924,4.59387604,20951.0,20950.0,0.00157606]
[1674213960960,4.59387604,20951.0,20950.0,0.00257606]
[1674213961228,4.59387604,20951.0,20950.0,0.00157606]
[1674213961517,4.21043745,20951.0,20950.0,0.00257606]
[1674213961779,3.48395891,20951.0,20950.0,0.00257606]
[1674213962091,2.89667911,20951.0,20950.0,0.00257606]
[1674213962369,3.10248138,20951.0,20950.0,0.00257606]
[1674213963414,4.92813304,20951.0,20950.0,0.00257606]
[1674213963945,4.70130555,20951.0,20950.0,0.00257606]
[1674213964747,4.41583737,20951.0,20950.0,0.00257606]
[1674213965022,4.70135096,20951.0,20950.0,0.00257606]
[1674213965547,4.79135096,20951.0,20950.0,0.00257606]
[1674213965826,4.50583737,20951.0,20950.0,0.00257606]
[1674213967477,4.84874511,20951.0,20950.0,0.00257606]
[1674213967732,4.50583737,20951.0,20950.0,0.00257606]
[1674213968753,4.02323518,20951.0,20950.0,0.00257606]
[1674213970034,4.30880739,20951.0,20950.0,0.00257606]
[1674213970539,4.53727101,20951.0,20950.0,0.00257606]
[1674213970793,4.30880739,20951.0,20950.0,0.00257606]
[1674213971314,4.30887594,20951.0,20950.0,0.00257606]
[1674213971562,4.51396948,20951.0,20950.0,0.00257606]